bitfinex/quotes_SOLUSD_20241103
["timestamp","ask_amount","ask_price","bid_price","bid_amount"]
[1730668145309,0.12549,162.84,162.81,0.3095565]
[1730668145813,0.12549,162.82,162.81,0.3095565]
[1730668146515,16.79306131,162.83,162.81,0.3095565]
[1730668146818,16.79306131,162.82,162.81,0.3095565]
[1730668147124,46.71164531,162.82,162.81,0.3095565]
[1730668147411,0.12549,162.82,162.81,0.3095565]
[1730668147591,16.79306131,162.82,162.81,0.3095565]
[1730668148313,22.93476131,162.82,162.81,0.3095565]
[1730668148703,16.79306131,162.82,162.81,0.3095565]
[1730668149099,116.71164531,162.82,162.81,0.3095565]
[1730668149299,110.73210694,162.82,162.81,0.3095565]
[1730668150527,153.5842387,162.82,162.81,0.3095565]
[1730668150819,0.12549,162.76,162.73,0.3095565]
[1730668151021,70.0,162.77,162.73,0.3095565]
[1730668151022,0.12549,162.74,162.73,0.3095565]
[1730668151715,16.83281622,162.74,162.73,0.3095565]
[1730668151911,46.75440022,162.74,162.73,0.3095565]
[1730668152320,40.60970022,162.74,162.73,0.3095565]
[1730668152502,46.75440022,162.74,162.73,0.3095565]
[1730668153199,46.75440022,162.74,162.65,15.6375565]
[1730668153200,0.12549,162.7,162.65,0.3095565]
[1730668153416,0.12549,162.68,162.65,0.3095565]
[1730668153701,0.12549,162.67,162.65,0.3095565]
[1730668153907,16.70732622,162.7,162.65,0.3095565]
[1730668154121,16.70732622,162.72,162.67,16.70732622]
[1730668154296,70.0,162.73,162.65,38.53518272]
[1730668154297,16.83281622,162.71,162.65,38.53518272]
[1730668155006,0.12549,162.72,162.67,32.07582622]
[1730668155617,70.0,162.75,162.69,16.70732622]
[1730668155618,16.70732622,162.75,162.69,16.70732622]
[1730668156315,0.12549,162.74,162.69,16.70732622]
[1730668156717,16.83281622,162.72,162.67,15.3685]
[1730668157206,0.12549,162.7,162.67,21.5159]
[1730668157612,0.12549,162.71,162.67,21.5159]
[1730668158126,16.70732622,162.74,162.68,16.70732622]
[1730668158416,0.12549,162.72,162.69,16.70732622]
[1730668158616,6.2481,162.76,162.67,21.5159]
[1730668158617,16.70732622,162.76,162.7,16.70732622]
[1730668158810,92.85102622,162.77,162.71,16.70732622]
[1730668159121,0.12549,162.75,162.71,22.85292622]
[1730668159811,0.12549,162.75,162.71,38.21762622]
[1730668160995,92.85092622,162.77,162.71,38.21762622]
[1730668161197,16.83281622,162.76,162.7,16.70732622]
[1730668161425,0.12549,162.76,162.71,16.70732622]
[1730668161602,86.70732622,162.79,162.74,16.70732622]
[1730668161916,16.70732622,162.78,162.72,16.70732622]
[1730668162220,0.12549,162.77,162.72,16.70732622]
[1730668162803,0.12549,162.75,162.73,6.1451]
[1730668163004,0.12549,162.77,162.73,6.1451]
[1730668163200,0.12549,162.75,162.73,6.1451]
[1730668163400,0.12549,162.75,162.73,22.85242622]
[1730668163929,0.12549,162.78,162.74,4.75871582]
[1730668164310,0.12549,162.79,162.74,4.75871582]
[1730668164712,0.12549,162.77,162.73,21.5079]
[1730668166505,70.12549,162.73,162.69,15.3661]
[1730668166707,0.12549,162.71,162.68,21.4749]
[1730668166904,0.12549,162.71,162.68,38.18222622]
[1730668167112,16.70732622,162.74,162.68,38.18222622]
[1730668167313,0.12549,162.73,162.68,38.18222622]
[1730668167725,0.12549,162.73,162.68,53.54972622]
[1730668168613,0.12549,162.73,162.69,16.70732622]
[1730668169016,86.83281622,162.71,162.65,38.53518272]
[1730668169216,0.12549,162.71,162.66,16.70732622]
[1730668169434,0.12549,162.71,162.67,16.70732622]
[1730668169737,0.12549,162.71,162.66,16.70732622]
[1730668169931,86.83281622,162.71,162.65,38.53518272]
[1730668170111,0.12549,162.69,162.65,38.53518272]
[1730668170321,6.1459,162.71,162.66,16.70732622]
[1730668170618,0.12549,162.7,162.66,16.70732622]
[1730668171008,46.62971022,162.72,162.66,16.70732622]
[1730668171210,0.12549,162.71,162.67,16.70732622]
[1730668171433,0.12549,162.71,162.66,16.70732622]
[1730668172411,0.12549,162.71,162.67,6.1474]
[1730668172626,22.95652622,162.74,162.67,16.70732622]
[1730668172837,86.70732622,162.75,162.69,16.70732622]
[1730668173245,86.70732622,162.77,162.71,16.70732622]
[1730668173421,22.95652622,162.78,162.72,16.70732622]
[1730668173738,29.09972622,162.78,162.72,16.70732622]
[1730668173922,16.70732622,162.77,162.71,16.70732622]
[1730668174426,0.12549,162.76,162.72,6.1455]
[1730668174626,0.12549,162.76,162.72,22.85282622]
[1730668174828,92.85022622,162.79,162.73,16.70732622]
[1730668175135,23.776884,162.78,162.73,16.70732622]
[1730668175324,0.12549,162.77,162.72,38.21662622]
[1730668176019,16.70732622,162.8,162.74,16.70732622]
[1730668176220,86.70732622,162.84,162.77,16.70732622]
[1730668176409,0.12549,162.83,162.77,16.70732622]
[1730668176610,0.12549,162.81,162.76,16.70732622]
[1730668177346,86.70732622,162.84,162.78,16.70732622]
[1730668177515,0.12549,162.83,162.78,16.70732622]
[1730668178130,0.12549,162.83,162.77,32.06582622]
[1730668178131,16.83281622,162.83,162.77,32.06582622]
[1730668178631,16.70732622,162.83,162.77,32.06582622]
[1730668178825,0.12549,162.82,162.77,32.06582622]
[1730668180045,0.12549,162.82,162.77,38.20942622]
[1730668181115,16.70732622,162.81,162.75,16.70732622]
[1730668181436,16.83281622,162.8,162.75,6.144]
[1730668181733,0.12549,162.76,162.73,15.3622]
[1730668181936,0.12549,162.76,162.73,21.5073]
[1730668182133,0.12549,162.76,162.7,38.21892622]
[1730668182336,0.12549,162.76,162.71,16.70732622]
[1730668183124,0.12549,162.76,162.71,22.85282622]
[1730668184438,0.12549,162.76,162.7,38.21922622]
[1730668185246,46.75390022,162.76,162.7,21.5119]
[1730668185824,46.75390022,162.76,162.7,38.21922622]
[1730668187152,46.75390022,162.76,162.7,15.3657]
[1730668187648,46.75390022,162.76,162.7,21.5119]
[1730668190244,0.12549,162.74,162.7,21.5119]
[1730668191454,86.70732622,162.77,162.7,38.21922622]
[1730668191635,92.85092622,162.77,162.7,38.21922622]
[1730668192040,0.12549,162.76,162.7,38.21922622]
[1730668192756,16.83281622,162.76,162.7,38.21922622]
[1730668193666,16.83281622,162.76,162.7,21.5119]
[1730668194760,0.12549,162.74,162.7,21.5119]
[1730668195656,16.70732622,162.73,162.67,16.70732622]
[1730668195865,0.12549,162.7,162.67,15.3685]
[1730668197190,6.27189,162.7,162.65,17.01688272]
[1730668197357,6.27189,162.7,162.65,6.4575565]
[1730668198381,22.97921622,162.7,162.65,6.4575565]
[1730668198590,0.12549,162.69,162.65,0.3095565]
[1730668198885,22.97951622,162.69,162.65,0.3095565]
[1730668199470,0.12549,162.67,162.65,0.3095565]
[1730668200374,16.70732622,162.68,162.65,0.3095565]
[1730668200375,0.12549,162.68,162.65,0.3095565]
[1730668200932,16.83281622,162.66,162.65,0.3095565]
[1730668201115,40.60970022,162.66,162.65,0.3095565]
[1730668201402,23.902374,162.66,162.65,0.3095565]
[1730668201699,92.85402622,162.69,162.65,0.3095565]
[1730668202009,70.0,162.72,162.67,16.70732622]
[1730668202300,70.0,162.72,162.65,21.8278565]
[1730668202301,16.83281622,162.71,162.65,38.53518272]
[1730668202479,0.12549,162.69,162.65,21.8278565]
[1730668203987,16.70732622,162.71,162.65,38.53518272]
[1730668204385,16.83281622,162.7,162.65,21.8278565]
[1730668205212,16.70732622,162.73,162.67,16.70732622]
[1730668205402,22.83252622,162.75,162.69,16.70732622]
[1730668205608,16.70732622,162.75,162.69,16.70732622]
[1730668205806,0.12549,162.74,162.69,16.70732622]
[1730668206510,0.12549,162.75,162.7,16.70732622]
[1730668206702,16.70732622,162.76,162.7,16.70732622]
[1730668206917,16.70732622,162.77,162.72,16.70732622]
[1730668207078,16.70732622,162.77,162.71,16.70732622]
[1730668208092,0.12549,162.75,162.71,16.70732622]
[1730668208806,16.83281622,162.77,162.71,16.70732622]
[1730668209282,16.83281622,162.77,162.72,6.1455]
[1730668209391,0.12549,162.75,162.7,32.07212622]
[1730668209586,16.83281622,162.75,162.7,21.5109]
[1730668210371,16.83281622,162.75,162.7,38.21822622]
[1730668210597,16.70732622,162.77,162.72,16.70732622]
[1730668210776,92.85062622,162.78,162.72,16.70732622]
[1730668210985,16.70732622,162.81,162.75,16.70732622]
[1730668211396,0.12549,162.8,162.75,16.70732622]
[1730668212327,16.83281622,162.8,162.75,6.1442]
[1730668214286,16.83281622,162.78,162.72,54.82022622]
[1730668215153,16.83281622,162.73,162.68,15.3666]
[1730668216156,16.70732622,162.72,162.68,21.5136]
[1730668216569,16.83281622,162.73,162.68,21.5136]
[1730668216977,16.70732622,162.72,162.68,21.5136]
[1730668217366,16.83281622,162.73,162.68,21.5136]
[1730668217567,16.83281622,162.73,162.68,38.22092622]
[1730668219365,16.83281622,162.74,162.68,38.22092622]
[1730668219890,0.12549,162.74,162.7,6.1462]
[1730668220195,16.83281622,162.74,162.7,6.1462]
[1730668220786,92.85012622,162.8,162.73,16.70732622]
[1730668220965,16.70732622,162.81,162.76,16.70732622]
[1730668221163,16.70732622,162.82,162.77,16.70732622]
[1730668221465,0.12549,162.81,162.77,16.70732622]
[1730668222173,16.70732622,162.82,162.76,16.70732622]
[1730668222486,86.70732622,162.84,162.78,16.70732622]
[1730668222867,22.84832622,162.84,162.78,16.70732622]
[1730668223267,0.12549,162.83,162.79,16.70732622]
[1730668224991,0.12549,162.83,162.79,22.84992622]
[1730668225885,6.1406,162.85,162.8,16.70732622]
[1730668226084,0.12549,162.84,162.79,38.20712622]
[1730668227687,23.776884,162.87,162.82,16.70732622]
[1730668227895,0.12549,162.86,162.82,16.70732622]
[1730668228271,16.70732622,162.89,162.83,16.70732622]
[1730668228468,28.90592622,162.91,162.85,16.70732622]
[1730668228685,6.1384,162.91,162.86,16.70732622]
[1730668228886,22.84572622,162.91,162.85,16.70732622]
[1730668229284,0.12549,162.9,162.85,16.70732622]
[1730668229481,22.84572622,162.91,162.85,16.70732622]
[1730668229889,22.84572622,162.91,162.84,21.4933]
[1730668229890,0.3095565,162.93,162.89,16.70732622]
[1730668230092,0.3095565,162.93,162.9,16.70732622]
[1730668230492,0.12549,162.92,162.89,16.70732622]
[1730668230800,0.3095565,162.93,162.89,16.70732622]
[1730668231099,0.3095565,162.93,162.89,22.84632622]
[1730668231277,0.12549,162.92,162.89,22.84632622]
[1730668231904,0.12549,162.92,162.9,16.70732622]
[1730668232395,0.3095565,162.93,162.9,16.70732622]
[1730668233004,0.3095565,162.93,162.9,22.84582622]
[1730668233171,0.3095565,162.93,162.9,6.1385]
[1730668238283,0.12549,162.92,162.88,16.70732622]
[1730668239493,0.12549,162.92,162.89,6.1391]
[1730668243005,0.12549,162.92,162.89,16.70732622]
[1730668243694,0.12549,162.92,162.88,16.70732622]
[1730668244389,0.12549,162.92,162.91,16.70732622]
[1730668245901,0.12549,162.92,162.91,22.84562622]
[1730668246694,0.12549,162.92,162.91,16.70732622]
[1730668247006,0.12549,162.92,162.9,16.70732622]
[1730668247213,0.12549,162.92,162.91,16.70732622]
[1730668248488,0.3095565,162.93,162.91,38.19132622]
[1730668248693,0.3095565,162.93,162.92,16.70732622]
[1730668250592,0.3095565,162.93,162.92,22.84522622]
[1730668254517,0.3095565,163.01,162.92,62.74212622]
[1730668254817,0.3095565,163.01,163.0,16.70732622]
[1730668256223,0.3095565,163.01,163.0,22.84222622]
[1730668256505,0.3095565,163.01,162.99,16.70732622]
[1730668256506,0.12549,163.0,162.99,16.70732622]
[1730668256713,11.40113853,163.0,162.98,16.70732622]
[1730668256916,11.28594764,163.0,162.99,16.70732622]
[1730668257117,0.12549,163.0,162.99,16.70732622]
[1730668258111,11.62173069,163.0,162.99,16.70732622]
[1730668258322,0.12549,163.0,162.99,16.70732622]
[1730668259527,0.12549,163.0,162.98,16.70732622]
[1730668259695,76.26049,163.0,162.96,16.70732622]
[1730668259899,6.26049,163.0,162.97,16.70732622]
[1730668260217,12.06157124,162.99,162.98,16.70732622]
[1730668260521,0.12549,162.99,162.98,16.70732622]
[1730668261413,0.3095565,163.01,162.98,22.84292622]
[1730668261805,0.12549,163.0,162.99,16.70732622]
[1730668262010,11.68285829,163.0,162.99,16.70732622]
[1730668262216,0.12549,163.0,162.99,16.70732622]
[1730668262406,11.8337441,163.0,162.99,16.70732622]
[1730668262612,0.12549,163.0,162.98,16.70732622]
[1730668262810,0.3095565,163.01,162.99,16.70732622]
[1730668263019,0.3095565,163.01,163.0,22.84222622]
[1730668266127,0.3095565,163.01,163.0,42.84222622]
[1730668266631,0.3095565,163.09,163.08,16.70732622]
[1730668266805,17.74109079,163.09,163.04,16.70732622]
[1730668267006,6.4410565,163.09,163.05,16.70732622]
[1730668267327,0.3095565,163.09,163.06,16.70732622]
[1730668267718,0.12549,163.08,163.06,16.70732622]
[1730668268030,0.3095565,163.09,163.06,16.70732622]
[1730668268232,0.12549,163.08,163.06,16.70732622]
[1730668268432,0.12549,163.08,163.05,16.70732622]
[1730668268609,6.4412565,163.09,163.05,16.70732622]
[1730668268931,86.70732622,163.11,163.05,16.70732622]
[1730668269622,40.48421022,163.1,163.04,16.70732622]
[1730668269806,46.61541022,163.1,163.04,16.70732622]
[1730668270631,29.908084,163.1,163.05,16.70732622]
[1730668272232,0.12549,163.09,163.05,16.70732622]
[1730668272425,0.12549,163.09,163.04,16.70732622]
[1730668272636,0.12549,163.09,163.07,16.70732622]
[1730668273335,23.776884,163.11,163.08,16.70732622]
[1730668273534,12.155,163.12,163.03,21.4681]
[1730668273739,6.1299,163.14,163.1,16.70732622]
[1730668273920,70.0,163.15,163.12,16.70732622]
[1730668274237,76.25479,163.15,163.11,16.70732622]
[1730668274444,76.25479,163.15,163.1,16.70732622]
[1730668274741,76.1293,163.15,163.1,16.70732622]
[1730668275321,0.12549,163.13,163.1,16.70732622]
[1730668275516,23.776884,163.12,163.07,16.70732622]
[1730668275721,0.12549,163.11,163.07,16.70732622]
[1730668276647,0.12549,163.11,163.08,16.70732622]
[1730668279530,0.12549,163.11,163.04,31.74382622]
[1730668279531,0.12549,163.09,163.04,31.74382622]
[1730668279737,11.5137029,163.08,163.04,16.70732622]
[1730668280039,11.5137029,163.08,163.0,45.7113]
[1730668280040,70.12549,163.08,163.02,16.70732622]
[1730668280241,6.25819,163.06,163.01,16.70732622]
[1730668280419,6.25819,163.06,163.0,15.0365]
[1730668280420,17.67958697,163.06,163.0,21.1711]
[1730668280625,6.25819,163.06,163.01,16.70732622]
[1730668281551,6.25819,163.06,163.0,16.70732622]
[1730668282242,6.25819,163.06,163.01,16.70732622]
[1730668282825,0.12549,163.04,163.0,16.70732622]
[1730668283032,0.12549,163.04,162.99,38.18002622]
[1730668283232,0.12549,163.04,163.0,16.70732622]
[1730668283768,0.12549,163.04,163.01,16.70732622]
[1730668284332,11.46208432,163.03,163.01,16.70732622]
[1730668284551,0.12549,163.04,163.01,16.70732622]
[1730668285642,0.12549,163.04,163.0,16.70732622]
[1730668285844,0.12549,163.04,163.01,16.70732622]
[1730668286434,23.776884,163.07,163.02,16.70732622]
[1730668287031,0.12549,163.06,163.03,16.70732622]
[1730668288039,6.1321,163.08,163.03,22.84092622]
[1730668288354,0.12549,163.07,163.04,16.70732622]
[1730668288561,0.12549,163.07,163.03,22.84092622]
[1730668289755,11.66464047,163.06,163.03,22.84092622]
[1730668289965,0.12549,163.07,163.04,16.70732622]
[1730668290257,0.12549,163.07,163.03,22.84092622]
[1730668290458,11.73035268,163.07,163.03,22.84092622]
[1730668290663,0.12549,163.07,163.03,22.84092622]
[1730668291279,11.96826774,163.06,163.03,22.84092622]
[1730668291468,11.64204636,163.05,163.03,22.84092622]
[1730668291754,0.12549,163.06,163.03,22.84092622]
[1730668293458,0.12549,163.06,163.03,10.64946864]
[1730668296363,0.12549,163.05,163.0,10.64946864]
[1730668297357,0.12549,163.05,163.0,16.78406864]
[1730668298365,0.12549,163.05,163.01,10.64946864]
[1730668301054,0.12549,163.05,163.0,32.12146864]
[1730668301246,0.12549,163.03,162.98,10.64946864]
[1730668301865,6.25939,163.03,162.98,16.78506864]
[1730668302161,0.12549,162.99,162.95,10.64946864]
[1730668302362,0.12549,162.99,162.94,25.99246864]
[1730668302363,11.24699997,162.98,162.94,25.99246864]
[1730668303150,0.12549,162.99,162.94,32.12956864]
[1730668303351,11.84828594,162.98,162.94,32.12956864]
[1730668303547,6.26099,162.99,162.94,32.12956864]
[1730668303861,12.08933379,162.98,162.94,32.12956864]
[1730668305269,12.08933379,162.98,162.95,10.64946864]
[1730668305969,12.08933379,162.98,162.96,10.64946864]
[1730668306756,12.08933379,162.98,162.96,16.78576864]
[1730668308975,0.12549,162.97,162.92,16.78706864]
[1730668309270,10.77495864,162.93,162.89,0.3095565]
[1730668309450,0.12549,162.91,162.89,0.3095565]
[1730668311576,12.05922122,162.9,162.89,0.3095565]
[1730668315863,0.12549,162.9,162.89,0.3095565]
[1730668316652,11.80967553,162.9,162.89,0.3095565]
[1730668316853,11.6547504,162.9,162.89,0.3095565]
[1730668318779,58.24427639,162.9,162.89,0.3095565]
[1730668320358,41.5703344,162.9,162.89,0.3095565]
[1730668322678,11.5292604,162.9,162.89,0.3095565]
[1730668322865,11.5292604,162.9,162.89,16.98349849]
[1730668323064,11.5292604,162.9,162.89,0.3095565]
[1730668323461,98.32869239,162.9,162.89,0.3095565]
[1730668323667,34.46739239,162.9,162.89,0.3095565]
[1730668323969,104.46739239,162.9,162.89,0.3095565]
[1730668324164,128.24427639,162.9,162.89,0.3095565]
[1730668325384,128.24427639,162.9,162.82,6.1416]
[1730668325385,0.12549,162.87,162.82,6.1416]
[1730668325569,0.12549,162.85,162.82,6.1416]
[1730668326084,11.65177875,162.84,162.82,6.1416]
[1730668326264,0.12549,162.85,162.82,6.1416]
[1730668326579,0.12549,162.86,162.82,6.1416]
[1730668326887,12.05556328,162.85,162.83,16.67394199]
[1730668327180,23.902374,162.88,162.84,5.16848359]
[1730668327574,23.902374,162.88,162.83,16.67394199]
[1730668328483,16.67394199,162.9,162.84,38.16724199]
[1730668328812,0.12549,162.89,162.85,16.67394199]
[1730668329279,0.12549,162.89,162.86,16.67394199]
[1730668329490,23.776884,162.9,162.84,21.4933]
[1730668329491,23.776884,162.91,162.87,16.67394199]
[1730668329791,0.12549,162.9,162.87,16.67394199]
[1730668329975,76.138,162.92,162.87,16.67394199]
[1730668330163,70.0,162.92,162.87,16.67394199]
[1730668330358,0.12549,162.91,162.87,16.67394199]
[1730668330583,0.12549,162.91,162.87,22.81354199]
[1730668331367,23.902374,162.91,162.87,22.81354199]
[1730668332178,23.902374,162.91,162.86,16.67394199]
[1730668332575,92.81114199,162.94,162.87,16.67394199]
[1730668332774,93.26144199,162.97,162.91,16.67394199]
[1730668332993,16.67394199,162.96,162.9,16.67394199]
[1730668333198,0.12549,162.95,162.9,16.67394199]
[1730668333399,0.12549,162.95,162.9,10.66679747]
[1730668334382,23.902374,162.95,162.91,6.1383]
[1730668336203,23.902374,162.95,162.91,10.66679747]
[1730668336499,23.902374,162.94,162.9,10.66679747]
[1730668336693,0.12549,162.94,162.9,10.66679747]
[1730668336895,0.12549,162.94,162.91,10.66679747]
[1730668338089,0.12549,162.94,162.91,16.80479747]
[1730668339002,0.12549,162.94,162.9,10.66679747]
[1730668340304,0.12549,162.94,162.91,10.66679747]
[1730668341302,0.12549,162.94,162.92,6.1379]
[1730668342405,23.776884,162.95,162.92,16.80469747]
[1730668342607,23.776884,162.99,162.94,10.66679747]
[1730668342981,0.12549,162.98,162.94,10.66679747]
[1730668343188,10.79228747,162.98,162.92,32.14959747]
[1730668343380,0.12549,162.96,162.92,32.14959747]
[1730668344806,0.12549,162.96,162.92,21.4828]
[1730668345808,0.12549,162.96,162.92,10.66679747]
[1730668347113,0.12549,162.96,162.93,6.1376]
[1730668347495,0.12549,162.96,162.93,16.80439747]
[1730668348405,0.12549,162.96,162.93,32.14839747]
[1730668350802,23.776884,162.99,162.95,10.66679747]
[1730668351205,23.902374,163.0,162.95,10.66679747]
[1730668351693,0.12549,163.0,162.97,10.66679747]
[1730668351896,96.46819747,163.03,162.97,10.66679747]
[1730668351897,102.60239747,163.03,162.97,10.66679747]
[1730668352294,0.12549,163.02,162.97,10.66679747]
[1730668352523,0.12549,163.02,162.98,21.475]
[1730668352715,102.60239747,163.03,162.98,21.475]
[1730668353210,0.12549,163.02,162.98,21.475]
[1730668353518,0.12549,163.02,162.98,10.66679747]
[1730668353820,16.80019747,163.04,162.98,10.66679747]
[1730668354224,86.80019747,163.05,162.99,10.66679747]
[1730668354397,76.1334,163.05,163.0,10.66679747]
[1730668355418,0.12549,163.04,163.0,16.80149747]
[1730668355811,23.776884,163.0,162.95,15.3413]
[1730668356015,0.12549,162.96,162.93,6.1376]
[1730668356909,10.79228747,162.96,162.92,6.1379]
[1730668357120,0.12549,162.96,162.92,6.1379]
[1730668359422,0.12549,162.96,162.91,32.00995261]
[1730668360803,0.12549,162.96,162.91,38.14825261]
[1730668361421,0.12549,162.96,162.92,16.66485261]
[1730668361830,0.12549,162.96,162.93,6.1376]
[1730668363612,0.12549,162.96,162.93,21.4816]
[1730668364326,0.12549,162.96,162.93,15.344]
[1730668365933,0.12549,162.96,162.93,32.00885261]
[1730668368025,0.12549,162.96,162.93,38.14645261]
[1730668368618,70.0,163.02,162.95,32.13295261]
[1730668368835,92.79835261,163.04,162.98,16.66485261]
[1730668369125,16.66485261,163.05,162.99,16.66485261]
[1730668369630,0.12549,163.04,162.99,16.66485261]
[1730668370134,0.12549,163.04,163.0,6.1349]
[1730668370339,23.902374,163.04,163.0,6.1349]
[1730668377320,23.402374,163.04,163.0,6.1349]
[1730668378540,131.06485261,163.07,163.01,16.66485261]
[1730668378841,131.06485261,163.07,163.0,21.4723]
[1730668378842,114.4,163.06,163.04,16.66485261]
[1730668379040,114.4,163.07,163.05,16.66485261]
[1730668379228,114.4,163.06,163.05,16.66485261]
[1730668379618,0.12549,163.06,163.04,16.66485261]
[1730668380020,114.4,163.06,163.03,16.66485261]
[1730668380629,114.4,163.06,163.04,16.66485261]
[1730668380829,0.12549,163.06,163.04,16.66485261]
[1730668381028,0.12549,163.06,163.03,16.66485261]
[1730668381220,114.52549,163.06,163.03,16.66485261]
[1730668381419,0.12549,163.06,163.03,10.64973347]
[1730668381638,0.12549,163.06,163.04,10.64973347]
[1730668381834,0.12549,163.06,163.03,10.64973347]
[1730668382138,114.52549,163.06,163.03,10.64973347]
[1730668382343,114.52549,163.06,163.04,6.1334]
[1730668382514,0.12549,163.06,163.04,6.1334]
[1730668382720,138.302374,163.06,163.03,15.3342]
[1730668383239,138.302374,163.06,163.03,21.468]
[1730668384318,138.302374,163.06,163.03,15.3342]
[1730668384521,144.435174,163.06,163.02,6.1342]
[1730668384835,225.08490747,163.06,163.01,6.1345]
[1730668385229,110.68490747,163.06,163.01,6.1345]
[1730668385434,110.68490747,163.06,163.0,25.98693347]
[1730668385435,0.12549,163.03,163.0,15.3372]
[1730668385645,23.902374,163.03,163.0,15.3372]
[1730668388016,23.902374,163.03,162.99,10.64973347]
[1730668388220,23.902374,163.04,162.99,10.64973347]
[1730668389322,23.902374,163.04,163.0,6.1349]
[1730668390044,6.1321,163.08,163.03,10.64973347]
[1730668390342,0.12549,163.07,163.03,10.64973347]
[1730668391120,0.12549,163.07,163.03,16.78323347]
[1730668391330,23.902374,163.07,163.03,16.78323347]
[1730668391559,0.3095565,163.09,163.04,10.64973347]
[1730668391728,0.3095565,163.09,163.07,10.64973347]
[1730668391923,0.3095565,163.09,163.08,10.64973347]
[1730668392141,0.3095565,163.09,163.03,21.4681]
[1730668392142,0.3095565,163.09,163.07,10.64973347]
[1730668393426,0.3095565,163.09,163.07,16.63096709]
[1730668393838,0.3095565,163.09,163.08,16.63096709]
[1730668394153,0.3095565,163.09,163.07,16.63096709]
[1730668394452,0.3095565,163.09,163.08,6.1319]
[1730668395242,0.3095565,163.09,163.08,22.76286709]
[1730668395451,0.3095565,163.09,163.07,16.63096709]
[1730668395738,0.3095565,163.09,163.05,16.63096709]
[1730668396648,0.12549,163.08,163.06,6.1327]
[1730668397531,0.12549,163.06,163.03,15.3346]
[1730668397733,0.12549,163.06,163.03,21.4684]
[1730668399028,0.12549,163.06,163.01,47.30326709]
[1730668399854,6.25829,163.06,162.99,21.4736]
[1730668400040,0.12549,163.02,162.99,21.4736]
[1730668400351,40.53334109,163.02,162.99,15.3383]
[1730668400541,23.902374,163.0,162.95,31.97236709]
[1730668400936,23.902374,163.0,162.95,15.3414]
[1730668401141,23.902374,163.01,162.97,6.136]
[1730668401652,23.902374,163.01,162.97,22.76696709]
[1730668401956,23.902374,163.02,162.97,22.76696709]
[1730668403357,40.53334109,163.02,162.96,16.63096709]
[1730668404052,40.53334109,163.02,162.95,31.97236709]
[1730668404449,0.12549,163.0,162.95,31.97236709]
[1730668404638,23.902374,163.0,162.95,38.10916709]
[1730668407259,23.902374,162.98,162.95,15.3414]
[1730668407459,23.902374,162.98,162.95,21.4782]
[1730668407460,40.53334109,162.98,162.95,21.4782]
[1730668408159,23.902374,162.98,162.95,38.10916709]
[1730668408354,23.776884,163.0,162.96,16.63096709]
[1730668408661,0.12549,162.99,162.95,38.10916709]
[1730668410348,86.75645709,162.99,162.95,21.4782]
[1730668410559,0.12549,162.97,162.95,21.4782]
[1730668411865,86.63096709,163.05,162.96,16.63096709]
[1730668412052,86.63096709,163.05,162.99,16.63096709]
[1730668412256,23.06456709,163.06,163.0,16.63096709]
[1730668412454,0.12549,163.05,163.0,16.63096709]
[1730668412755,23.06456709,163.06,163.0,16.63096709]
[1730668413159,0.12549,163.05,163.0,16.63096709]
[1730668413556,23.06456709,163.06,163.01,6.1345]
[1730668414351,0.12549,163.04,163.01,6.1345]
[1730668414571,11.75426213,163.03,163.01,6.1345]
[1730668417278,11.75426213,163.03,163.0,21.4717]
[1730668417575,0.12549,163.04,163.0,21.4717]
[1730668417948,12.81707047,163.03,163.0,21.4717]
[1730668418273,11.65477458,163.02,163.0,21.4717]
[1730668418883,12.68394935,163.01,163.0,21.4717]
[1730668419069,80.77938185,163.04,162.98,10.65389185]
[1730668419268,0.12549,163.01,162.98,10.65389185]
[1730668419473,12.08300428,163.0,162.98,10.65389185]
[1730668419769,11.65858572,163.0,162.98,10.65389185]
[1730668419970,0.12549,162.99,162.97,21.4759]
[1730668420156,12.3862965,162.98,162.97,21.4759]
[1730668420359,86.78759185,163.04,162.97,32.12979185]
[1730668420567,11.91092932,162.98,162.97,21.4759]
[1730668420767,0.12549,163.0,162.97,21.4759]
[1730668420974,12.63247978,162.99,162.97,21.4759]
[1730668421156,0.12549,163.02,162.97,21.4759]
[1730668421357,0.12549,163.0,162.97,21.4759]
[1730668421676,0.12549,163.02,162.97,21.4759]
[1730668421977,0.12549,163.0,162.97,21.4759]
[1730668422274,11.96189358,163.0,162.97,21.4759]
[1730668423466,12.01216971,162.99,162.97,21.4759]
[1730668423780,0.12549,163.02,162.97,21.4759]
[1730668423981,0.12549,163.0,162.97,21.4759]